bitfinex/quotes_SOLUSD_20250612
["timestamp","ask_amount","ask_price","bid_price","bid_amount"]
[1749728220736,10.0,157.82,157.81,25.40964886]
[1749728221253,10.0,157.82,157.81,39.8550302]
[1749728222525,10.0,157.82,157.81,18.933972]
[1749728222845,10.0,157.82,157.81,18.64964886]
[1749728226245,10.0,157.82,157.81,33.0950302]
[1749728226453,10.0,157.82,157.81,18.933972]
[1749728228447,10.0,157.82,157.81,33.0950302]
[1749728232161,10.0,157.83,157.82,18.933972]
[1749728232460,10.0,157.83,157.82,14.44538134]
[1749728233527,10.0,157.84,157.82,14.44538134]
[1749728233734,10.0,157.84,157.83,33.0950302]
[1749728234708,10.0,157.85,157.84,18.933972]
[1749728234829,10.0,157.85,157.84,14.44538134]
[1749728235034,10.0,157.86,157.84,14.44538134]
[1749728235264,10.0,157.86,157.85,33.0950302]
[1749728235764,10.0,157.88,157.86,18.933972]
[1749728235948,6.9839,157.91,157.88,18.933972]
[1749728235949,10.0,157.89,157.88,18.933972]
[1749728236259,10.0,157.89,157.88,33.0950302]
[1749728237755,10.0,157.9,157.88,33.0950302]
[1749728238265,10.0,157.91,157.9,18.933972]
[1749728238470,10.0,157.92,157.9,0.28432314]
[1749728238673,10.0,157.92,157.91,33.0950302]
[1749728239844,10.0,157.92,157.91,18.933972]
[1749728240043,10.0,157.92,157.91,33.0950302]
[1749728240447,10.0,157.9,157.85,6.76]
[1749728240658,10.0,157.9,157.89,18.933972]
[1749728241542,10.0,157.89,157.88,14.1610582]
[1749728241740,10.0,157.87,157.86,32.81070706]
[1749728241944,10.0,157.87,157.86,18.64964886]
[1749728242145,10.0,157.87,157.86,32.81070706]
[1749728242536,10.0,157.87,157.86,33.0950302]
[1749728243058,10.0,157.87,157.86,18.933972]
[1749728243259,10.0,157.87,157.86,33.0950302]
[1749728244684,10.0,157.88,157.87,0.28432314]
[1749728244849,10.0,157.88,157.87,14.44538134]
[1749728246803,10.0,157.88,157.87,18.64964886]
[1749728247765,10.0,157.88,157.87,32.81070706]
[1749728248502,10.0,157.88,157.87,18.64964886]
[1749728252783,10.0,157.86,157.85,6.76]
[1749728253184,24.1610582,157.86,157.85,6.76]
[1749728256503,30.49578517,157.86,157.85,6.76]
[1749728256991,30.49578517,157.86,157.82,18.64964886]
[1749728257220,10.0,157.83,157.82,18.64964886]
[1749728258299,10.0,157.81,157.8,0.28432314]
[1749728258606,10.0,157.81,157.8,18.933972]
[1749728258801,10.0,157.81,157.8,33.0950302]
[1749728261109,10.0,157.81,157.8,18.933972]
[1749728261301,10.0,157.81,157.8,33.0950302]
[1749728265400,10.0,157.81,157.8,18.933972]
[1749728265599,10.0,157.81,157.8,33.0950302]
[1749728268918,10.0,157.81,157.8,18.933972]
[1749728269122,10.0,157.81,157.8,33.0950302]
[1749728269613,10.0,157.81,157.8,18.933972]
[1749728270088,10.0,157.78,157.77,48.33085218]
[1749728270283,10.0,157.78,157.77,62.49191038]
[1749728271206,10.0,157.79,157.78,0.28432314]
[1749728271396,10.0,157.79,157.78,14.44538134]
[1749728272304,10.0,157.79,157.78,18.933972]
[1749728272482,10.0,157.79,157.78,33.0950302]
[1749728274412,10.0,157.8,157.78,33.0950302]
[1749728274590,10.0,157.8,157.79,33.0950302]
[1749728274796,10.0,157.81,157.8,0.28432314]
[1749728275697,10.0,157.81,157.8,14.44538134]
[1749728276994,10.0,157.81,157.8,0.28432314]
[1749728281015,10.0,157.81,157.79,14.1610582]
[1749728281514,10.0,157.81,157.8,33.0950302]
[1749728281725,10.0,157.78,157.77,29.39688018]
[1749728281921,10.0,157.78,157.77,6.74]
[1749728282602,24.1610582,157.78,157.77,6.74]
[1749728282791,30.7815582,157.78,157.77,6.74]
[1749728282998,37.1194971,157.78,157.72,18.64964886]
[1749728283198,37.1194971,157.78,157.71,14.1610582]
[1749728283199,10.0,157.73,157.7,18.933972]
[1749728283415,10.0,157.73,157.72,0.28432314]
[1749728283722,10.0,157.72,157.71,32.81070706]
[1749728284032,10.0,157.72,157.71,18.64964886]
[1749728284197,10.0,157.67,157.66,6.72]
[1749728284397,10.0,157.67,157.66,20.8810582]
[1749728284820,10.0,157.67,157.66,6.72]
[1749728285115,10.0,157.67,157.66,25.36964886]
[1749728285497,10.0,157.67,157.66,25.653972]
[1749728285901,10.0,157.67,157.66,25.36964886]
[1749728286609,10.0,157.67,157.66,25.653972]
[1749728288630,10.0,157.67,157.66,39.8150302]
[1749728289008,10.0,157.67,157.66,25.653972]
[1749728289201,10.0,157.67,157.66,39.8150302]
[1749728292729,10.0,157.68,157.66,39.8150302]
[1749728292906,10.0,157.68,157.67,14.44538134]
[1749728293101,10.0,157.68,157.67,0.28432314]
[1749728293423,10.0,157.67,157.66,6.72]
[1749728293605,10.5,157.67,157.66,6.72]
[1749728294219,10.0,157.62,157.59,6.72]
[1749728294424,10.0,157.62,157.61,32.81070706]
[1749728294603,10.0,157.62,157.61,33.0950302]
[1749728295004,10.0,157.62,157.61,18.933972]
[1749728295205,10.0,157.62,157.61,33.0950302]
[1749728295797,10.0,157.62,157.61,18.933972]
[1749728296301,10.0,157.62,157.61,33.0950302]
[1749728296617,10.0,157.62,157.61,18.933972]
[1749728297210,10.0,157.6,157.59,6.72]
[1749728297428,10.0,157.6,157.58,14.1610582]
[1749728297629,10.0,157.6,157.57,18.64964886]
[1749728297836,10.0,157.59,157.58,18.933972]
[1749728298013,10.0,157.59,157.58,33.0950302]
[1749728298801,10.0,157.61,157.6,0.28432314]
[1749728299026,10.0,157.61,157.6,33.0950302]
[1749728299734,10.0,157.61,157.6,18.933972]
[1749728300030,10.0,157.61,157.6,33.0950302]
[1749728301030,10.0,157.61,157.6,18.64964886]
[1749728302338,10.0,157.61,157.6,32.81070706]
[1749728302828,10.0,157.61,157.6,18.64964886]
[1749728303302,10.0,157.61,157.6,32.81070706]
[1749728303939,10.0,157.62,157.61,18.64964886]
[1749728304133,10.0,157.65,157.62,0.28432314]
[1749728304437,10.0,157.65,157.64,33.0950302]
[1749728305502,10.0,157.65,157.64,18.933972]
[1749728305730,10.0,157.65,157.64,33.0950302]
[1749728305932,10.0,157.66,157.65,0.28432314]
[1749728306314,10.0,157.66,157.65,14.44538134]
[1749728307514,10.0,157.67,157.66,0.28432314]
[1749728307715,10.0,157.67,157.66,14.44538134]
[1749728310538,10.0,157.65,157.64,33.0950302]
[1749728312048,10.0,157.65,157.64,18.64964886]
[1749728312413,10.0,157.65,157.64,32.81070706]
[1749728312613,10.0,157.65,157.64,33.0950302]
[1749728313815,10.0,157.65,157.64,18.933972]
[1749728314019,10.0,157.65,157.64,33.0950302]
[1749728316656,10.0,157.66,157.65,0.28432314]
[1749728316819,10.0,157.67,157.65,33.0950302]
[1749728317027,10.0,157.67,157.66,33.0950302]
[1749728319525,10.0,157.68,157.67,0.28432314]
[1749728319736,10.0,157.68,157.67,14.44538134]
[1749728324425,10.0,157.68,157.67,0.28432314]
[1749728324780,10.0,157.68,157.67,14.44538134]
[1749728327357,10.0,157.68,157.67,0.28432314]
[1749728327543,10.0,157.68,157.67,14.44538134]
[1749728328431,0.5,157.72,157.67,14.44538134]
[1749728328432,10.0,157.69,157.67,33.0950302]
[1749728328631,10.0,157.7,157.69,18.64964886]
[1749728328833,10.0,157.7,157.69,32.81070706]
[1749728329056,10.0,157.72,157.7,0.28432314]
[1749728329234,6.83874787,157.76,157.7,0.28432314]
[1749728329235,10.0,157.71,157.7,0.28432314]
[1749728329552,10.0,157.71,157.7,33.0950302]
[1749728330760,0.5,157.76,157.72,0.28432314]
[1749728330761,10.0,157.73,157.72,0.28432314]
[1749728331260,10.0,157.7,157.68,18.933972]
[1749728331466,10.0,157.7,157.69,33.0950302]
[1749728331833,0.5,157.74,157.7,0.28432314]
[1749728331834,10.0,157.71,157.7,0.28432314]
[1749728332037,10.0,157.71,157.7,14.44538134]
[1749728333461,9.33,157.71,157.7,14.44538134]
[1749728334543,9.33,157.71,157.7,0.28432314]
[1749728334759,9.33,157.71,157.7,14.44538134]
[1749728335260,9.33,157.71,157.7,33.0950302]
[1749728336945,9.33,157.71,157.7,18.933972]
[1749728337376,9.33,157.71,157.7,33.0950302]
[1749728337541,9.33,157.73,157.72,0.28432314]
[1749728337739,9.33,157.73,157.72,14.44538134]
[1749728339554,9.33,157.73,157.72,33.0950302]
[1749728340469,9.33,157.75,157.74,0.28432314]
[1749728340673,9.33,157.75,157.74,33.0950302]
[1749728347694,9.33,157.75,157.74,18.933972]
[1749728347891,9.33,157.75,157.74,33.0950302]
[1749728349458,9.33,157.73,157.72,18.79181043]
[1749728349849,9.33,157.73,157.72,33.0950302]
[1749728355103,9.33,157.74,157.73,18.933972]
[1749728355269,9.33,157.74,157.73,14.44538134]
[1749728355471,9.33,157.74,157.73,0.28432314]
[1749728355882,9.33,157.74,157.73,14.44538134]
[1749728356259,9.33,157.76,157.73,14.44538134]
[1749728356592,9.33,157.74,157.73,14.44538134]
[1749728357473,9.33,157.75,157.73,14.44538134]
[1749728357789,9.33,157.75,157.71,26.0]
[1749728357790,9.33,157.75,157.74,33.0950302]
[1749728358160,9.30781,157.75,157.74,33.0950302]
[1749728358804,9.30781,157.75,157.7,6.66]
[1749728359007,9.30781,157.75,157.7,25.30964886]
[1749728359008,9.30781,157.71,157.7,25.30964886]
[1749728359207,9.30781,157.71,157.7,39.47070706]
[1749728359517,9.30781,157.71,157.7,39.7550302]
[1749728360218,9.30781,157.71,157.7,25.593972]
[1749728360423,9.30781,157.71,157.7,39.7550302]
[1749728361714,9.30781,157.71,157.7,25.30964886]
[1749728363395,9.30781,157.71,157.7,30.03214311]
[1749728363619,9.30781,157.71,157.7,25.30964886]
[1749728363916,9.30781,157.71,157.7,11.38260948]
[1749728364213,6.13910307,157.71,157.7,11.3828185]
[1749728364415,1.38604268,157.71,157.7,11.3828183]
[1749728364617,1.38604268,157.71,157.7,11.38923893]
[1749728365006,1.38604268,157.71,157.7,11.38924752]
[1749728365200,1.38604268,157.71,157.7,11.38925529]
[1749728365916,1.38604268,157.71,157.7,39.7550302]
[1749728367822,1.38604268,157.71,157.7,25.593972]
[1749728368001,1.38604268,157.71,157.7,39.7550302]
[1749728368429,1.38604268,157.71,157.7,25.593972]
[1749728368627,1.38604268,157.71,157.7,39.7550302]
[1749728369208,1.38604268,157.71,157.7,25.593972]
[1749728369416,1.38604268,157.71,157.7,25.30964886]
[1749728370315,1.38604268,157.71,157.7,39.47070706]
[1749728370706,1.38604268,157.6,157.58,1.6038]
[1749728371121,1.38604268,157.61,157.6,18.64964886]
[1749728371327,1.38604268,157.61,157.6,33.0950302]
[1749728371710,1.38604268,157.61,157.6,32.81070706]
[1749728372218,1.38604268,157.61,157.6,33.0950302]
[1749728372428,1.38604268,157.61,157.6,18.64964886]
[1749728372733,1.38604268,157.59,157.58,32.81070706]
[1749728372931,1.38604268,157.59,157.58,33.0950302]
[1749728373931,1.38604268,157.59,157.58,18.79181043]
[1749728374119,7.73162298,157.59,157.58,18.64964886]
[1749728374320,1.38604268,157.55,157.54,6.62]
[1749728374708,1.38604268,157.55,157.54,25.26964886]
[1749728377406,7.73323404,157.55,157.54,25.26964886]
[1749728377608,21.89429224,157.55,157.54,25.26964886]
[1749728377850,21.89429224,157.55,157.54,6.62]
[1749728378212,1.38604268,157.55,157.54,6.62]
[1749728382540,1.38604268,157.55,157.41,147.5]
[1749728382541,1.38604268,157.49,157.37,1.5554]
[1749728382724,41.54710088,157.49,157.37,1.5554]
[1749728382924,41.54710088,157.49,157.38,3.3085881]
[1749728382925,1.38604268,157.39,157.38,3.3085881]
[1749728383327,1.38604268,157.36,157.33,26.0]
[1749728383516,1.38604268,157.34,157.32,0.8476206]
[1749728383837,1.38604268,157.34,157.33,14.1610582]
[1749728384223,1.38604268,157.35,157.33,14.1610582]
[1749728384536,1.38604268,157.34,157.32,0.8476206]
[1749728384747,1.38604268,157.34,157.33,14.1610582]
[1749728384915,1.38604268,157.35,157.34,18.64964886]
[1749728385120,34.90354369,157.5,157.34,18.64964886]
[1749728385121,1.38604268,157.38,157.34,58.81070706]
[1749728385318,1.38604268,157.35,157.32,0.8476206]
[1749728385541,26.0,157.45,157.32,0.8476206]
[1749728385542,1.38604268,157.34,157.32,0.8476206]
[1749728385717,1.38604268,157.34,157.33,39.94632801]
[1749728386044,1.38604268,157.34,157.33,18.933972]
[1749728386242,1.38604268,157.35,157.33,39.94632801]
[1749728386433,1.38604268,157.34,157.33,18.64964886]
[1749728386741,1.38604268,157.36,157.34,0.28432314]
[1749728387449,1.38604268,157.36,157.35,39.94632801]
[1749728387746,1.38604268,157.36,157.35,18.64964886]
[1749728387918,1.38604268,157.37,157.36,18.933972]
[1749728389246,1.38604268,157.38,157.36,40.23065115]
[1749728389425,1.38604268,157.37,157.36,0.28432314]
[1749728389726,1.38604268,157.38,157.37,18.933972]
[1749728389927,1.38604268,157.38,157.37,40.23065115]
[1749728390548,1.38604268,157.38,157.37,0.28432314]
[1749728390729,1.38604268,157.38,157.37,21.58100229]
[1749728391052,1.38604268,157.38,157.37,40.23065115]
[1749728391436,1.38604268,157.38,157.37,18.64964886]
[1749728391845,1.38604268,157.38,157.37,40.23065115]
[1749728392327,1.38604268,157.38,157.37,18.933972]
[1749728392526,1.38604268,157.38,157.37,40.23065115]
[1749728392946,1.38604268,157.38,157.37,18.933972]
[1749728393146,1.38604268,157.38,157.37,40.23065115]
[1749728396039,1.38604268,157.38,157.37,18.933972]
[1749728396244,1.38604268,157.38,157.37,40.23065115]
[1749728397659,1.38604268,157.38,157.37,46.81065115]
[1749728404261,1.38604268,157.39,157.37,46.81065115]
[1749728404446,31.29667915,157.5,157.37,46.81065115]
[1749728404447,1.38604268,157.41,157.38,40.23065115]
[1749728404642,1.38604268,157.41,157.4,40.23065115]
[1749728405260,1.38604268,157.41,157.4,33.12614553]
[1749728405542,1.38604268,157.41,157.4,18.933972]
[1749728405760,1.38604268,157.41,157.4,33.12614553]
[1749728406061,1.38604268,157.42,157.41,18.933972]
[1749728406362,1.38604268,157.42,157.41,33.12614553]
[1749728407540,1.38604268,157.43,157.41,33.12614553]
[1749728407865,1.38604268,157.43,157.42,33.12614553]
[1749728408364,1.38604268,157.45,157.44,0.28432314]
[1749728408560,1.38604268,157.45,157.44,33.12614553]
[1749728409776,1.38604268,157.46,157.45,18.933972]
[1749728409944,1.38604268,157.46,157.45,33.12614553]
[1749728410770,1.38604268,157.47,157.46,0.28432314]
[1749728410960,1.38604268,157.47,157.46,33.12614553]
[1749728411269,1.38604268,157.48,157.47,18.933972]
[1749728411472,6.2098,157.53,157.48,0.28432314]
[1749728411473,1.38604268,157.5,157.48,0.28432314]
[1749728411644,1.38604268,157.51,157.48,0.28432314]
[1749728411848,1.38604268,157.51,157.5,33.12614553]
[1749728413242,1.38604268,157.51,157.5,18.933972]
[1749728413442,1.38604268,157.51,157.5,33.12614553]
[1749728414973,1.38604268,157.52,157.51,0.28432314]
[1749728415153,1.38604268,157.52,157.51,33.12614553]
[1749728415474,1.38604268,157.53,157.51,33.12614553]
[1749728415647,1.38604268,157.53,157.52,33.12614553]
[1749728416171,1.38604268,157.53,157.52,47.31831906]
[1749728416749,1.38604268,157.55,157.53,0.28432314]
[1749728416967,1.38604268,157.57,157.55,18.933972]
[1749728417271,1.38604268,157.58,157.57,18.933972]
[1749728417468,1.38604268,157.58,157.57,39.70614553]
[1749728420166,8.01274268,157.61,157.57,39.70614553]
[1749728420477,1.38604268,157.58,157.57,25.513972]
[1749728420773,1.38604268,157.6,157.57,25.513972]
[1749728420982,1.38604268,157.58,157.57,25.513972]
[1749728421165,1.38604268,157.61,157.57,25.513972]
[1749728421358,1.38604268,157.59,157.57,25.513972]
[1749728421782,1.38604268,157.61,157.59,18.933972]
[1749728422082,1.38604268,157.61,157.6,33.12614553]
[1749728422262,1.38604268,157.62,157.61,0.28432314]
[1749728423158,1.38604268,157.62,157.61,14.47649667]
[1749728424481,1.38604268,157.62,157.61,32.84182239]
[1749728425958,1.38604268,157.62,157.61,18.64964886]
[1749728426155,1.38604268,157.61,157.6,14.19217353]
[1749728426358,1.38604268,157.61,157.58,18.933972]
[1749728426572,1.38604268,157.59,157.58,18.933972]
[1749728426794,1.38604268,157.59,157.58,33.12614553]
[1749728426960,1.38604268,157.56,157.53,18.64964886]
[1749728427166,1.38604268,157.56,157.55,32.84182239]
[1749728427478,1.38604268,157.56,157.55,37.84468321]
[1749728427788,1.38604268,157.56,157.55,37.84469894]
[1749728427976,1.38604268,157.57,157.56,18.933972]
[1749728428166,0.5,157.62,157.56,33.12614553]
[1749728428367,2.0536,157.63,157.6,32.84182239]
[1749728428686,0.5,157.63,157.61,14.19217353]
[1749728428861,0.5,157.64,157.62,4.71786877]
[1749728429061,0.5,157.64,157.63,4.71786759]
[1749728429386,0.5,157.64,157.62,14.19217353]
[1749728429560,0.5,157.64,157.63,4.71784801]
[1749728429755,6.8438575,157.64,157.63,4.71784801]
[1749728429975,21.03603103,157.64,157.63,4.71784801]
[1749728430169,6.8438575,157.64,157.63,4.71785169]
[1749728430365,21.03603103,157.64,157.6,18.64964886]
[1749728430573,21.03603103,157.64,157.61,4.71792749]
[1749728430776,21.03603103,157.64,157.62,4.71792749]
[1749728431085,14.19217353,157.63,157.58,32.84182239]
[1749728431381,0.5,157.62,157.59,4.71808243]
[1749728431584,0.5,157.62,157.6,4.71817957]
[1749728431880,6.84437254,157.62,157.58,32.84182239]
[1749728432084,6.84437254,157.62,157.59,4.7181828]
[1749728432284,6.84437254,157.62,157.59,14.19217353]
[1749728432485,0.5,157.63,157.61,14.19217353]
[1749728432660,0.5,157.64,157.61,14.19217353]
[1749728432964,0.5,157.64,157.62,4.75591917]
[1749728433171,0.5,157.64,157.63,4.75591635]
[1749728433370,0.5,157.64,157.63,4.75584114]
[1749728434181,0.5,157.64,157.63,4.75583331]
[1749728434597,0.5,157.64,157.63,4.75584768]
[1749728434893,0.5,157.64,157.63,4.75585309]
[1749728435395,6.8408,157.65,157.63,4.75575594]
[1749728435696,6.8408,157.65,157.64,4.75575594]
[1749728435995,6.8408,157.65,157.64,4.75564804]
[1749728436168,0.5,157.66,157.64,4.75564804]
[1749728436365,0.5,157.66,157.64,14.19217353]
[1749728436799,0.5,157.66,157.65,4.64829321]
[1749728436997,20.47247353,157.69,157.65,4.64829841]
[1749728436998,6.84207964,157.68,157.65,4.64829841]
[1749728437295,6.84207964,157.68,157.66,4.64813589]
[1749728437466,6.84207964,157.68,157.67,4.64813471]
[1749728437660,6.84207964,157.68,157.64,14.19217353]
[1749728437988,0.5,157.68,157.65,18.83972196]
[1749728438204,0.5,157.68,157.66,4.64751406]
[1749728438406,0.5,157.68,157.67,4.64749643]
[1749728438566,0.5,157.68,157.67,4.64749438]
[1749728438888,0.5,157.68,157.66,14.19217353]
[1749728439088,0.5,157.68,157.67,4.64749386]
[1749728439290,6.7803,157.69,157.67,4.64749386]
[1749728439474,6.7803,157.69,157.68,4.64748585]
[1749728439790,6.7803,157.69,157.66,14.19217353]
[1749728440174,6.7803,157.69,157.67,4.64750362]
[1749728440366,6.7803,157.69,157.68,4.64750285]
[1749728440786,6.7803,157.69,157.68,4.64750207]
[1749728440981,6.7803,157.69,157.68,4.64750972]
[1749728441186,6.7803,157.69,157.67,14.19217353]
[1749728441593,0.5,157.69,157.68,4.64742469]
[1749728441890,0.5,157.7,157.68,4.64742392]
[1749728442192,0.5,157.72,157.69,14.19217353]
[1749728442396,1.5831,157.75,157.71,14.19217353]
[1749728442606,0.5,157.74,157.73,14.19217353]
[1749728442808,0.5,157.76,157.73,14.19217353]
[1749728442985,0.5,157.76,157.69,0.28432314]
[1749728442986,0.5,157.76,157.75,14.19217353]
[1749728443312,0.5,157.78,157.75,14.19217353]
[1749728443483,0.5,157.78,157.77,14.19217353]
[1749728443669,0.5,157.8,157.77,14.19217353]
[1749728443869,0.5,157.8,157.78,14.19217353]
[1749728444090,0.5,157.8,157.79,14.19217353]
[1749728444398,6.3322,157.81,157.79,14.19217353]
[1749728444595,0.5,157.82,157.8,18.64964886]
[1749728444794,0.5,157.85,157.81,14.19217353]
[1749728445005,0.5,157.85,157.77,18.933972]
[1749728445006,0.5,157.85,157.82,18.64964886]
[1749728445291,0.5,157.85,157.82,21.18172065]
[1749728446166,28.01693834,157.85,157.77,18.933972]
[1749728446371,21.18172065,157.84,157.8,18.64964886]
[1749728446572,0.5,157.83,157.8,18.64964886]
[1749728446800,0.5,157.83,157.8,21.18172065]
[1749728446974,0.5,157.83,157.79,18.64964886]
[1749728447175,0.5,157.83,157.8,21.18172065]
[1749728447495,0.5,157.84,157.81,21.18172065]
[1749728448376,0.5,157.84,157.79,18.64964886]
[1749728448578,27.5173092,157.84,157.79,39.83136951]
[1749728448788,0.5,157.83,157.8,21.18172065]
[1749728449499,0.5,157.83,157.77,18.933972]
[1749728449805,0.5,157.83,157.8,21.18172065]
[1749728450198,0.5,157.83,157.77,25.473972]
[1749728450382,0.5,157.83,157.8,21.18172065]
[1749728450776,0.5,157.84,157.8,21.18172065]
[1749728450999,21.68172065,157.84,157.8,21.18172065]
[1749728451480,21.68172065,157.84,157.77,25.473972]
[1749728451681,21.68172065,157.84,157.8,21.18172065]
[1749728452078,21.18172065,157.83,157.79,18.64964886]
[1749728452305,0.5,157.82,157.79,18.64964886]
[1749728454092,21.68172065,157.83,157.79,18.64964886]
[1749728454288,28.01772787,157.83,157.77,6.82432314]
[1749728454616,28.01772787,157.83,157.78,39.83136951]
[1749728454792,0.5,157.83,157.79,21.18172065]
[1749728455102,6.83597446,157.83,157.78,18.64964886]
[1749728455300,6.83597446,157.83,157.79,21.18172065]
[1749728455501,6.83597446,157.83,157.78,18.64964886]
[1749728455699,6.83597446,157.83,157.79,21.18172065]
[1749728456178,6.83597446,157.83,157.78,18.64964886]
[1749728456383,6.83597446,157.83,157.79,21.18172065]
[1749728459425,16.66666667,157.96,157.85,18.64964886]
[1749728459716,16.66666667,157.96,157.91,18.64964886]
[1749728459878,16.66666667,157.96,157.91,62.02363228]
[1749728460078,16.66666667,157.96,157.91,39.83136951]
[1749728460276,16.66666667,157.96,157.91,18.64964886]
[1749728460500,16.66666667,157.96,157.91,44.37639824]
[1749728460711,16.66666667,157.96,157.91,44.3763158]
[1749728460917,16.66666667,157.96,157.91,44.37631894]
[1749728461083,296.0,158.0,157.91,44.37616146]
[1749728461084,270.0,158.0,157.91,44.37616146]
[1749728461597,270.0,158.0,157.91,39.83136951]
[1749728462110,270.0,158.0,157.91,65.83136951]
[1749728462481,16.16666667,157.92,157.91,65.83136951]
[1749728462685,16.16666667,157.92,157.91,70.37496952]
[1749728462903,16.16666667,157.92,157.91,65.83136951]
[1749728463205,16.16666667,157.92,157.91,70.37527541]
[1749728463390,16.16666667,157.92,157.91,65.83136951]
[1749728463592,16.16666667,157.92,157.91,51.14964886]
[1749728463793,16.16666667,157.92,157.91,72.33136951]
[1749728464104,16.16666667,157.92,157.91,46.33136951]
[1749728464823,16.16666667,157.92,157.91,6.5]
[1749728465511,22.49898683,157.92,157.91,6.5]
[1749728466012,16.16666667,157.92,157.89,21.18172065]
[1749728466210,22.49901035,157.92,157.89,21.18172065]
[1749728466710,22.49901035,157.92,157.88,21.18172065]
[1749728467295,43.680731,157.92,157.87,21.18172065]
[1749728467487,22.49901035,157.92,157.88,21.18172065]
[1749728467687,22.49901035,157.92,157.85,18.64964886]
[1749728467923,16.16666667,157.92,157.91,21.18172065]
[1749728469189,16.16666667,157.92,157.91,39.83136951]
[1749728471301,16.16666667,157.92,157.9,21.18172065]
[1749728471491,16.16666667,157.92,157.87,0.28432314]
[1749728471799,16.16666667,157.92,157.89,21.18172065]
[1749728472005,16.16666667,157.92,157.9,21.18172065]
[1749728472406,22.49901896,157.92,157.86,18.64964886]
[1749728472611,22.49901896,157.92,157.89,21.18172065]
[1749728473414,43.68073961,157.92,157.84,0.28432314]
[1749728473614,43.68073961,157.92,157.85,0.28432314]
[1749728473920,43.68073961,157.92,157.87,21.18172065]
[1749728474700,21.18172065,157.91,157.86,21.18172065]
[1749728474935,21.18172065,157.91,157.85,0.28432314]
[1749728475201,21.18172065,157.91,157.86,21.18172065]
[1749728475607,27.51482822,157.91,157.86,21.18172065]
[1749728476202,21.18172065,157.9,157.86,21.18172065]
[1749728476598,21.18172065,157.88,157.84,18.64964886]
[1749728477622,21.18172065,157.88,157.84,39.83136951]
[1749728477809,21.18172065,157.88,157.83,6.5]
[1749728477810,27.51576063,157.88,157.83,27.68172065]
[1749728478125,27.51576063,157.88,157.83,6.5]
[1749728478322,27.51576063,157.88,157.84,21.18172065]
[1749728478700,33.98994523,157.91,157.86,21.18172065]
[1749728478897,48.58172065,157.9,157.86,21.18172065]
[1749728479300,48.58172065,157.9,157.85,21.18172065]
[1749728479301,21.18172065,157.89,157.85,21.18172065]
[1749728479600,21.18172065,157.88,157.83,27.68172065]
[1749728479904,6.3207,157.88,157.85,21.18172065]
[1749728480406,12.65468307,157.88,157.84,21.18172065]
[1749728481000,6.3207,157.88,157.84,21.18172065]
[1749728481202,33.83639009,157.88,157.83,27.68172065]
[1749728482327,33.83639009,157.88,157.84,21.18172065]
[1749728483704,33.83639009,157.88,157.83,27.68172065]
[1749728483907,12.65466944,157.88,157.84,21.18172065]
[1749728484118,12.65466944,157.88,157.85,4.68259115]
[1749728484300,12.65466944,157.88,157.86,4.68259038]
[1749728484497,12.65466944,157.88,157.87,4.6825896]
[1749728484702,12.65466944,157.88,157.87,4.68258883]
[1749728485719,12.65466944,157.88,157.84,21.18172065]
[1749728485932,26.0,157.89,157.85,25.8643118]
[1749728486123,26.0,157.89,157.86,4.68216726]
[1749728486427,26.0,157.89,157.85,21.18172065]
[1749728486620,26.0,157.89,157.86,4.68216726]
[1749728486822,26.0,157.89,157.85,21.18172065]
[1749728486823,32.33353763,157.89,157.87,4.68216649]
[1749728487126,26.0,157.89,157.88,4.68216649]
[1749728487328,26.0,157.89,157.88,4.68206748]
[1749728487734,32.33352333,157.89,157.88,4.68206748]
[1749728487906,32.33352333,157.89,157.88,4.68206341]
[1749728488106,26.0,157.89,157.85,21.18172065]
[1749728488322,26.0,157.89,157.86,4.68206574]
[1749728488523,26.0,157.89,157.87,4.68206496]
[1749728488835,28.859675,157.92,157.88,25.86375631]
[1749728489138,28.859675,157.92,157.89,4.68184274]
[1749728489336,50.04139565,157.92,157.9,4.68184196]
[1749728489533,50.04139565,157.92,157.91,4.68153077]
[1749728490113,50.04139565,157.92,157.91,4.68153466]
[1749728490434,50.04139565,157.92,157.91,4.68164131]
[1749728490615,50.04139565,157.92,157.91,4.68176525]